fUST/lending_fUST_20250820
["ID","MTS","AMOUNT","RATE_DAILY","PERIOD"]
[380238377,1755622256625,-151.0,0.00020521,2]
[380238378,1755622256635,-151.0,0.00020521,2]
[380238379,1755622256644,-151.0,0.00020521,2]
[380238380,1755622256653,-151.0,0.00020521,2]
[380238381,1755622256663,-151.0,0.00020521,2]
[380238382,1755622256673,-179.753152,0.00020521,2]
[380238383,1755622256682,-151.0,0.00020521,2]
[380238384,1755622256692,-151.0,0.00020521,2]
[380238385,1755622256701,-1000.0,0.00020521,2]
[380238386,1755622256712,-1000.0,0.00020521,2]
[380238387,1755622256722,-524.761552,0.00020521,2]
[380238388,1755622256731,-157.82445,0.00020521,2]
[380238389,1755622256740,-157.82445,0.00020521,2]
[380238390,1755622256749,-157.82445,0.00020521,2]
[380238391,1755622256758,-157.82445,0.00020521,2]
[380238392,1755622256768,-200.0,0.00020546,2]
[380238393,1755622256777,-201.64454251,0.00020546,2]
[380238394,1755622256786,-200.0,0.00020546,2]
[380238395,1755622256795,-6998.28,0.00020547,2]
[380238396,1755622256804,-480.0,0.00020547,2]
[380238397,1755622256814,-480.0,0.00020547,2]
[380238398,1755622256824,-966.56,0.00020547,2]
[380238399,1755622256833,-480.0,0.00020547,2]
[380238400,1755622256842,-480.0,0.00020547,2]
[380238401,1755622256852,-480.0,0.00020547,2]
[380238402,1755622256861,-480.0,0.00020547,2]
[380238403,1755622256871,-480.0,0.00020547,2]
[380238404,1755622256880,-480.0,0.00020547,2]
[380238405,1755622256890,-480.0,0.00020547,2]
[380238406,1755622256900,-480.0,0.00020547,2]
[380238407,1755622256910,-480.0,0.00020547,2]
[380238408,1755622256919,-480.0,0.00020547,2]
[380238409,1755622256929,-665.71,0.00020547,2]
[380238410,1755622256938,-480.0,0.00020547,2]
[380238411,1755622256949,-480.0,0.00020547,2]
[380238412,1755622256959,-4077.21,0.00020547,2]
[380238413,1755622256970,-1099.69,0.00020547,2]
[380238414,1755622256980,-480.0,0.00020547,2]
[380238415,1755622256989,-480.0,0.00020547,2]
[380238416,1755622256999,-151.0,0.00020547,2]
[380238417,1755622257008,-480.0,0.00020547,2]
[380238418,1755622257023,-151.0,0.00020547,2]
[380238419,1755622257033,-480.0,0.00020547,2]
[380238420,1755622257043,-191.098864,0.00020547,2]
[380238421,1755622257052,-530.28,0.00020547,2]
[380238422,1755622257061,-480.0,0.00020547,2]
[380238423,1755622257071,-151.0,0.00020547,2]
[380238424,1755622257080,-151.0,0.00020547,2]
[380238425,1755622257089,-151.0,0.00020547,2]
[380238426,1755622257098,-480.0,0.00020547,2]
[380238427,1755622257107,-480.0,0.00020547,2]
[380238428,1755622257117,-480.0,0.00020547,2]
[380238429,1755622257126,-480.0,0.00020547,2]
[380238430,1755622257135,-989.73,0.00020547,2]
[380238431,1755622257144,-151.0,0.00020547,2]
[380238432,1755622257153,-151.0,0.00020547,2]
[380238433,1755622257162,-151.0,0.00020547,2]
[380238434,1755622257171,-151.0,0.00020547,2]
[380238435,1755622257181,-480.0,0.00020547,2]
[380238436,1755622257190,-151.0,0.00020547,2]
[380238437,1755622257199,-151.0,0.00020547,2]
[380238438,1755622257208,-151.0,0.00020547,2]
[380238439,1755622257221,-464.59593915,0.00020547,2]
[380238440,1755622257230,-820.05,0.00020547,2]
[380238441,1755622257240,-665.88,0.00020547,2]
[380238442,1755622257249,-186.594858,0.00020547,2]
[380238443,1755622257258,-186.594858,0.00020547,2]
[380238444,1755622257267,-186.594858,0.00020547,2]
[380238445,1755622257276,-186.594858,0.00020547,2]
[380238446,1755622257285,-480.0,0.00020547,2]
[380238447,1755622257295,-151.0,0.00020547,2]
[380238448,1755622257305,-1385.41,0.00020547,2]
[380238449,1755622257315,-151.0,0.00020547,2]
[380238450,1755622257325,-685.48,0.00020547,2]
[380238451,1755622257335,-151.0,0.00020547,2]
[380238452,1755622257346,-151.0,0.00020547,2]
[380238453,1755622257355,-1090.94,0.00020547,2]
[380238454,1755622257365,-480.0,0.00020547,2]
[380238455,1755622257374,-151.0,0.00020547,2]
[380238456,1755622257384,-480.0,0.00020547,2]
[380238457,1755622257394,-151.0,0.00020547,2]
[380238458,1755622257403,-480.0,0.00020547,2]
[380238459,1755622257415,-899.76,0.00020547,2]
[380238460,1755622257425,-1040.67,0.00020547,2]
[380238461,1755622257436,-151.0,0.00020547,2]
[380238462,1755622257446,-496.36,0.00020547,2]
[380238463,1755622257455,-151.0,0.00020547,2]
[380238464,1755622257467,-151.0,0.00020547,2]
[380238465,1755622257477,-350.0,0.00020547,2]
[380238466,1755622257486,-480.0,0.00020547,2]
[380238467,1755622257495,-480.0,0.00020547,2]
[380238468,1755622257505,-748.34,0.00020547,2]
[380238469,1755622257515,-480.0,0.00020547,2]
[380238470,1755622257524,-480.0,0.00020547,2]
[380238471,1755622257534,-480.0,0.00020547,2]
[380238472,1755622257543,-358.082778,0.00020547,2]
[380238473,1755622257552,-358.082778,0.00020547,2]
[380238474,1755622257562,-267.9517493,0.00020547,2]
[380238475,1755622257571,-358.082778,0.00020547,2]
[380238476,1755622257581,-358.082778,0.00020547,2]
[380238477,1755622257591,-615.91,0.00020547,2]
[380238478,1755622257600,-308.24836458,0.00020547,2]
[380238479,1755622257609,-480.0,0.00020547,2]
[380238480,1755622257622,-480.0,0.00020547,2]
[380238481,1755622257631,-973.55,0.00020547,2]
[380238482,1755622257641,-480.0,0.00020547,2]
[380238483,1755622257650,-480.0,0.00020547,2]
[380238484,1755622257659,-480.0,0.00020547,2]
[380238485,1755622257668,-480.0,0.00020547,2]
[380238486,1755622257677,-480.0,0.00020547,2]
[380238487,1755622257686,-480.0,0.00020547,2]
[380238488,1755622257695,-480.0,0.00020547,2]
[380238489,1755622257703,-480.0,0.00020547,2]
[380238490,1755622257715,-3502.95,0.00020547,2]
[380238491,1755622257725,-2118.85,0.00020547,2]
[380238492,1755622257735,-480.0,0.00020547,2]
[380238493,1755622257744,-482.45527504,0.00020547,2]
[380238494,1755622257753,-348.3465289,0.00020547,2]
[380238495,1755622257763,-480.0,0.00020547,2]
[380238496,1755622257772,-1200.84,0.00020547,2]
[380238497,1755622257782,-577.5,0.00020547,2]
[380238498,1755622257791,-675.63,0.00020547,2]
[380238499,1755622257800,-535.82,0.00020547,2]
[380238500,1755622257809,-480.0,0.00020547,2]
[380238501,1755622257818,-480.0,0.00020547,2]
[380238502,1755622257827,-480.0,0.00020547,2]
[380238503,1755622257837,-1462.46,0.00020547,2]
[380238504,1755622257847,-480.0,0.00020547,2]
[380238505,1755622257856,-958.15,0.00020547,2]
[380238506,1755622257869,-480.0,0.00020547,2]
[380238507,1755622257878,-684.55,0.00020547,2]
[380238508,1755622257887,-480.0,0.00020547,2]
[380238509,1755622257897,-809.37,0.00020547,2]
[380238510,1755622257906,-480.0,0.00020547,2]
[380238511,1755622257915,-822.15,0.00020547,2]
[380238512,1755622257925,-480.0,0.00020547,2]
[380238513,1755622257939,-485.73,0.00020547,2]
[380238514,1755622257948,-1876.86,0.00020547,2]
[380238515,1755622257957,-480.0,0.00020547,2]
[380238516,1755622258053,-480.0,0.00020547,2]
[380238517,1755622258070,-594.43,0.00020547,2]
[380238518,1755622258079,-2779.77,0.00020547,2]
[380238519,1755622258089,-480.0,0.00020547,2]
[380238520,1755622258098,-480.0,0.00020547,2]
[380238521,1755622258108,-635.9,0.00020547,2]
[380238522,1755622258117,-480.0,0.00020547,2]
[380238523,1755622258126,-2697.84,0.00020547,2]
[380238524,1755622258136,-480.0,0.00020547,2]
[380238525,1755622258145,-480.0,0.00020547,2]
[380238526,1755622258154,-480.0,0.00020547,2]
[380238527,1755622258163,-2946.82,0.00020547,2]
[380238528,1755622258174,-810.05,0.00020547,2]
[380238529,1755622258183,-480.0,0.00020547,2]
[380238530,1755622258193,-480.0,0.00020547,2]
[380238531,1755622258202,-1509.61,0.00020547,2]
[380238532,1755622258213,-480.0,0.00020547,2]
[380238533,1755622258223,-2422.45,0.00020547,2]
[380238534,1755622258233,-1082.62,0.00020547,2]
[380238535,1755622258242,-480.0,0.00020547,2]
[380238536,1755622258251,-480.0,0.00020547,2]
[380238537,1755622258261,-516.51,0.00020547,2]
[380238538,1755622258271,-480.0,0.00020547,2]
[380238539,1755622258288,-480.0,0.00020547,2]
[380238540,1755622258298,-480.0,0.00020547,2]
[380238541,1755622258307,-480.0,0.00020547,2]
[380238542,1755622258316,-191.53,0.00020547,2]
[380238543,1755622258326,-480.0,0.00020547,2]
[380238544,1755622258336,-480.0,0.00020547,2]
[380238545,1755622258345,-480.0,0.00020547,2]
[380238546,1755622258355,-480.0,0.00020547,2]
[380238547,1755622258365,-2620.55,0.00020547,2]
[380238548,1755622258374,-480.0,0.00020547,2]
[380238549,1755622258384,-191.10637339,0.00020547,2]
[380238550,1755622258393,-604.32,0.00020547,2]
[380238551,1755622258402,-480.0,0.00020547,2]
[380238552,1755622258412,-846.8,0.00020547,2]
[380238553,1755622258420,-486.41,0.00020547,2]
[380238554,1755622258430,-480.0,0.00020547,2]
[380238555,1755622258439,-663.09,0.00020547,2]
[380238556,1755622258448,-519.86,0.00020547,2]
[380238557,1755622258457,-480.0,0.00020547,2]
[380238558,1755622258468,-480.0,0.00020547,2]
[380238559,1755622258477,-480.0,0.00020547,2]
[380238560,1755622258486,-480.0,0.00020547,2]
[380238561,1755622258495,-705.07,0.00020547,2]
[380238562,1755622258504,-2167.0,0.00020547,2]
[380238563,1755622258513,-480.0,0.00020547,2]
[380238564,1755622258522,-7328.71,0.00020547,2]
[380238565,1755622258534,-538.37,0.00020547,2]
[380238566,1755622258543,-480.0,0.00020547,2]
[380238567,1755622258552,-480.0,0.00020547,2]
[380238568,1755622258561,-590.33,0.00020547,2]
[380238569,1755622258571,-480.0,0.00020547,2]
[380238570,1755622258580,-3159.53,0.00020547,2]
[380238571,1755622258589,-277.3,0.00020574,3]
[380238572,1755622258598,-420.0,0.00020683,2]
[380238573,1755622258607,-7529.65393196,0.0002069,2]
[380238574,1755622258616,-8087.18579842,0.00020725,2]
[380238575,1755622258625,-1680.0,0.00020784,2]
[380238576,1755622258634,-667.65,0.00020786,2]
[380238577,1755622258643,-200.0,0.0002082,2]
[380238578,1755622258652,-200.0,0.0002082,2]
[380238579,1755622258662,-6998.28,0.00020821,2]
[380238580,1755622258671,-151.0,0.00020821,2]
[380238581,1755622258681,-151.0,0.00020821,2]
[380238582,1755622258691,-480.0,0.00020821,2]
[380238583,1755622258701,-480.0,0.00020821,2]
[380238584,1755622258710,-966.56,0.00020821,2]
[380238585,1755622258720,-151.0,0.00020821,2]
[380238586,1755622258729,-480.0,0.00020821,2]
[380238587,1755622258739,-480.0,0.00020821,2]
[380238588,1755622258748,-480.0,0.00020821,2]
[380238589,1755622258756,-151.0,0.00020821,2]
[380238590,1755622258765,-151.0,0.00020821,2]
[380238591,1755622258775,-480.0,0.00020821,2]
[380238592,1755622258784,-151.0,0.00020821,2]
[380238593,1755622258793,-480.0,0.00020821,2]
[380238594,1755622258803,-626.42,0.00020821,2]
[380238595,1755622258812,-151.0,0.00020821,2]
[380238596,1755622258821,-480.0,0.00020821,2]
[380238597,1755622258831,-665.71,0.00020821,2]
[380238598,1755622258840,-151.0,0.00020821,2]
[380238599,1755622258852,-480.0,0.00020821,2]
[380238600,1755622258868,-4077.21,0.00020821,2]
[380238601,1755622258882,-1099.69,0.00020821,2]
[380238602,1755622258897,-480.0,0.00020821,2]
[380238603,1755622258914,-480.0,0.00020821,2]
[380238604,1755622258930,-480.0,0.00020821,2]
[380238605,1755622258947,-530.28,0.00020821,2]
[380238606,1755622258964,-480.0,0.00020821,2]
[380238607,1755622258979,-480.0,0.00020821,2]
[380238608,1755622258994,-480.0,0.00020821,2]
[380238609,1755622259007,-206.86,0.00020821,2]
[380238610,1755622259022,-480.0,0.00020821,2]
[380238611,1755622259039,-989.73,0.00020821,2]
[380238612,1755622259057,-820.05,0.00020821,2]
[380238613,1755622259074,-665.88,0.00020821,2]
[380238614,1755622259085,-485.66630083,0.00020821,2]
[380238615,1755622259100,-1385.41,0.00020821,2]
[380238616,1755622259116,-685.48,0.00020821,2]
[380238617,1755622259129,-480.0,0.00020821,2]
[380238618,1755622259145,-1090.94,0.00020821,2]
[380238619,1755622259158,-480.0,0.00020821,2]
[380238620,1755622259171,-899.76,0.00020821,2]
[380238621,1755622259185,-1040.67,0.00020821,2]
[380238622,1755622259200,-496.36,0.00020821,2]
[380238623,1755622259213,-480.0,0.00020821,2]
[380238624,1755622259226,-748.34,0.00020821,2]
[380238625,1755622259239,-480.0,0.00020821,2]
[380238626,1755622259251,-480.0,0.00020821,2]
[380238627,1755622259265,-615.91,0.00020821,2]
[380238628,1755622259278,-480.0,0.00020821,2]
[380238629,1755622259292,-480.0,0.00020821,2]
[380238630,1755622259305,-973.55,0.00020821,2]
[380238631,1755622259318,-480.0,0.00020821,2]
[380238632,1755622259330,-480.0,0.00020821,2]
[380238633,1755622259343,-480.0,0.00020821,2]
[380238634,1755622259356,-480.0,0.00020821,2]
[380238635,1755622259368,-480.0,0.00020821,2]
[380238636,1755622259381,-480.0,0.00020821,2]
[380238637,1755622259394,-480.0,0.00020821,2]
[380238638,1755622259407,-3502.95,0.00020821,2]
[380238639,1755622259420,-2118.85,0.00020821,2]
[380238640,1755622259432,-480.0,0.00020821,2]
[380238641,1755622259445,-1200.84,0.00020821,2]
[380238642,1755622259458,-577.5,0.00020821,2]
[380238643,1755622259471,-675.63,0.00020821,2]
[380238644,1755622259484,-535.82,0.00020821,2]
[380238645,1755622259497,-480.0,0.00020821,2]
[380238646,1755622259510,-480.0,0.00020821,2]
[380238647,1755622259523,-506.66,0.00020821,2]
[380238648,1755622259536,-1462.46,0.00020821,2]
[380238649,1755622259549,-480.0,0.00020821,2]
[380238650,1755622259563,-958.15,0.00020821,2]
[380238651,1755622259575,-480.0,0.00020821,2]
[380238652,1755622259588,-684.55,0.00020821,2]
[380238653,1755622259601,-480.0,0.00020821,2]
[380238654,1755622259614,-809.37,0.00020821,2]
[380238655,1755622259627,-480.0,0.00020821,2]
[380238656,1755622259639,-822.15,0.00020821,2]
[380238657,1755622259653,-480.0,0.00020821,2]
[380238658,1755622259665,-485.73,0.00020821,2]
[380238659,1755622259678,-1876.86,0.00020821,2]
[380238660,1755622259691,-480.0,0.00020821,2]
[380238661,1755622259704,-567.39179579,0.00020821,2]
[380238662,1755622259717,-594.43,0.00020821,2]
[380238663,1755622259731,-2779.77,0.00020821,2]
[380238664,1755622259745,-440.93599754,0.00020821,2]
[380238665,1755622259758,-278.86156771,0.00020821,2]
[380238666,1755622259770,-635.9,0.00020821,2]
[380238667,1755622259784,-480.0,0.00020821,2]
[380238668,1755622259797,-2697.84,0.00020821,2]
[380238669,1755622259810,-480.0,0.00020821,2]
[380238670,1755622259823,-537.9,0.00020821,2]
[380238671,1755622259837,-2946.82,0.00020821,2]
[380238672,1755622259849,-810.05,0.00020821,2]
[380238673,1755622259859,-513.1,0.00020821,2]
[380238674,1755622259869,-480.0,0.00020821,2]
[380238675,1755622259879,-1509.61,0.00020821,2]
[380238676,1755622259888,-480.0,0.00020821,2]
[380238677,1755622259898,-2422.45,0.00020821,2]
[380238678,1755622260060,-1082.62,0.00020821,2]
[380238679,1755622260087,-480.0,0.00020821,2]
[380238680,1755622260097,-480.0,0.00020821,2]
[380238681,1755622260108,-516.51,0.00020821,2]
[380238682,1755622260118,-480.0,0.00020821,2]
[380238683,1755622260128,-480.0,0.00020821,2]
[380238684,1755622260137,-177.37312554,0.00020821,2]
[380238685,1755622260148,-480.0,0.00020821,2]
[380238686,1755622260157,-480.0,0.00020821,2]
[380238687,1755622260167,-563.55264914,0.00020821,2]
[380238688,1755622260177,-559.46,0.00020821,2]
[380238689,1755622260187,-480.0,0.00020821,2]
[380238690,1755622260197,-2620.55,0.00020821,2]
[380238691,1755622260207,-480.0,0.00020821,2]
[380238692,1755622260218,-604.32,0.00020821,2]
[380238693,1755622260228,-480.0,0.00020821,2]
[380238694,1755622260238,-846.8,0.00020821,2]
[380238695,1755622260248,-480.0,0.00020821,2]
[380238696,1755622260258,-663.09,0.00020821,2]
[380238697,1755622260267,-519.86,0.00020821,2]
[380238698,1755622260276,-480.0,0.00020821,2]
[380238699,1755622260285,-591.54,0.00020821,2]
[380238700,1755622260295,-480.0,0.00020821,2]
[380238701,1755622260305,-705.07,0.00020821,2]
[380238702,1755622260315,-2167.0,0.00020821,2]
[380238703,1755622260324,-480.0,0.00020821,2]
[380238704,1755622260334,-7328.71,0.00020821,2]
[380238705,1755622260343,-538.37,0.00020821,2]
[380238706,1755622260353,-357.94484887,0.00020821,2]
[380238707,1755622260362,-480.0,0.00020821,2]
[380238708,1755622260372,-590.33,0.00020821,2]
[380238709,1755622260381,-480.0,0.00020821,2]
[380238710,1755622260390,-217.44732963,0.00020833,2]
[380238711,1755622260400,-800.0,0.00020932,2]
[380238712,1755622260409,-800.0,0.00020963,2]
[380238713,1755622260418,-360.0,0.00021015,2]
[380238714,1755622260428,-800.0,0.00021047,2]
[380238715,1755622260437,-1500.0,0.00021068,2]
[380238716,1755622260446,-500.0,0.00021068,2]
[380238717,1755622260456,-1500.0,0.00021068,2]
[380238718,1755622260466,-1500.0,0.00021068,2]
[380238719,1755622260475,-1500.0,0.00021068,2]
[380238720,1755622260484,-500.0,0.00021068,2]
[380238721,1755622260494,-1500.0,0.00021068,2]
[380238722,1755622260503,-1053.75124846,0.00021089,2]
[380238723,1755622260513,-202.68736873,0.00021094,2]
[380238724,1755622260523,-6998.28,0.00021095,2]
[380238725,1755622260532,-480.0,0.00021095,2]
[380238726,1755622260541,-966.56,0.00021095,2]
[380238727,1755622260551,-480.0,0.00021095,2]
[380238728,1755622260560,-151.82,0.00021095,2]
[380238729,1755622260569,-480.0,0.00021095,2]
[380238730,1755622260579,-480.0,0.00021095,2]
[380238731,1755622260589,-665.71,0.00021095,2]
[380238732,1755622260598,-480.0,0.00021095,2]
[380238733,1755622260608,-4077.21,0.00021095,2]
[380238734,1755622260618,-1099.69,0.00021095,2]
[380238735,1755622260627,-275.90627527,0.00021095,2]
[380238736,1755622260637,-480.0,0.00021095,2]
[380238737,1755622260647,-480.0,0.00021095,2]
[380238738,1755622260657,-530.28,0.00021095,2]
[380238739,1755622260667,-480.0,0.00021095,2]
[380238740,1755622260677,-480.0,0.00021095,2]
[380238741,1755622260687,-318.58,0.00021095,2]
[380238742,1755622260697,-480.0,0.00021095,2]
[380238743,1755622260707,-989.73,0.00021095,2]
[380238744,1755622260720,-820.05,0.00021095,2]
[380238745,1755622260731,-665.88,0.00021095,2]
[380238746,1755622260740,-1385.41,0.00021095,2]
[380238747,1755622260750,-685.48,0.00021095,2]
[380238748,1755622260759,-480.0,0.00021095,2]
[380238749,1755622260769,-1090.94,0.00021095,2]
[380238750,1755622260778,-480.0,0.00021095,2]
[380238751,1755622260788,-899.76,0.00021095,2]
[380238752,1755622260797,-1040.67,0.00021095,2]
[380238753,1755622260807,-151.0,0.00021095,2]
[380238754,1755622260816,-299.492,0.00021095,2]
[380238755,1755622260826,-496.36,0.00021095,2]
[380238756,1755622260835,-151.0,0.00021095,2]
[380238757,1755622260845,-480.0,0.00021095,2]
[380238758,1755622260855,-748.34,0.00021095,2]
[380238759,1755622260864,-480.0,0.00021095,2]
[380238760,1755622260873,-358.082778,0.00021095,2]
[380238761,1755622260883,-358.082778,0.00021095,2]
[380238762,1755622260892,-358.082778,0.00021095,2]
[380238763,1755622260901,-358.082778,0.00021095,2]
[380238764,1755622260910,-615.91,0.00021095,2]
[380238765,1755622260920,-480.0,0.00021095,2]
[380238766,1755622260929,-480.0,0.00021095,2]
[380238767,1755622260940,-973.55,0.00021095,2]
[380238768,1755622260950,-480.0,0.00021095,2]
[380238769,1755622260960,-480.0,0.00021095,2]
[380238770,1755622260975,-480.0,0.00021095,2]
[380238771,1755622260984,-151.0,0.00021095,2]
[380238772,1755622260994,-151.0,0.00021095,2]
[380238773,1755622261004,-151.0,0.00021095,2]
[380238774,1755622261016,-480.0,0.00021095,2]
[380238775,1755622261026,-151.0,0.00021095,2]
[380238776,1755622261037,-480.0,0.00021095,2]
[380238777,1755622261048,-3502.95,0.00021095,2]
[380238778,1755622261058,-2118.85,0.00021095,2]
[380238779,1755622261068,-151.0,0.00021095,2]
[380238780,1755622261078,-151.0,0.00021095,2]
[380238781,1755622261087,-151.0,0.00021095,2]
[380238782,1755622261098,-221.606324,0.00021095,2]
[380238783,1755622261108,-151.0,0.00021095,2]
[380238784,1755622261118,-1200.84,0.00021095,2]
[380238785,1755622261127,-151.0,0.00021095,2]
[380238786,1755622261137,-577.5,0.00021095,2]
[380238787,1755622261146,-675.63,0.00021095,2]
[380238788,1755622261156,-535.82,0.00021095,2]
[380238789,1755622261166,-480.0,0.00021095,2]
[380238790,1755622261175,-480.0,0.00021095,2]
[380238791,1755622261185,-1462.46,0.00021095,2]
[380238792,1755622261194,-958.15,0.00021095,2]
[380238793,1755622261203,-480.0,0.00021095,2]
[380238794,1755622261212,-684.55,0.00021095,2]
[380238795,1755622261225,-480.0,0.00021095,2]
[380238796,1755622261235,-151.0,0.00021095,2]
[380238797,1755622261244,-809.37,0.00021095,2]
[380238798,1755622261254,-480.0,0.00021095,2]
[380238799,1755622261264,-151.0,0.00021095,2]
[380238800,1755622261275,-822.15,0.00021095,2]
[380238801,1755622261285,-151.0,0.00021095,2]
[380238802,1755622261295,-480.0,0.00021095,2]
[380238803,1755622261304,-485.73,0.00021095,2]
[380238804,1755622261313,-1876.86,0.00021095,2]
[380238805,1755622261323,-480.0,0.00021095,2]
[380238806,1755622261332,-594.43,0.00021095,2]
[380238807,1755622261341,-2779.77,0.00021095,2]
[380238808,1755622261350,-151.0,0.00021095,2]
[380238809,1755622261359,-635.9,0.00021095,2]
[380238810,1755622261368,-151.0,0.00021095,2]
[380238811,1755622261377,-480.0,0.00021095,2]
[380238812,1755622261386,-2697.84,0.00021095,2]
[380238813,1755622261396,-151.0,0.00021095,2]
[380238814,1755622261405,-480.0,0.00021095,2]
[380238815,1755622261415,-2946.82,0.00021095,2]
[380238816,1755622261425,-151.0,0.00021095,2]
[380238817,1755622261434,-810.05,0.00021095,2]
[380238818,1755622261443,-1509.61,0.00021095,2]
[380238819,1755622261453,-480.0,0.00021095,2]
[380238820,1755622261463,-2422.45,0.00021095,2]
[380238821,1755622261475,-1082.62,0.00021095,2]
[380238822,1755622261485,-480.0,0.00021095,2]
[380238823,1755622261494,-516.51,0.00021095,2]
[380238824,1755622261503,-480.0,0.00021095,2]
[380238825,1755622261512,-480.0,0.00021095,2]
[380238826,1755622261521,-480.0,0.00021095,2]
[380238827,1755622261531,-480.0,0.00021095,2]
[380238828,1755622261540,-480.0,0.00021095,2]
[380238829,1755622261549,-151.0,0.00021095,2]
[380238830,1755622261558,-2620.55,0.00021095,2]
[380238831,1755622261567,-194.820171,0.00021095,2]
[380238832,1755622261577,-480.0,0.00021095,2]
[380238833,1755622261586,-157.82445,0.00021095,2]
[380238834,1755622261595,-157.82445,0.00021095,2]
[380238835,1755622261605,-604.32,0.00021095,2]
[380238836,1755622261614,-157.82445,0.00021095,2]
[380238837,1755622261624,-480.0,0.00021095,2]
[380238838,1755622261634,-157.82445,0.00021095,2]
[380238839,1755622261644,-846.8,0.00021095,2]
[380238840,1755622261653,-151.0,0.00021095,2]
[380238841,1755622261663,-409.803287,0.00021095,2]
[380238842,1755622261673,-151.0,0.00021095,2]
[380238843,1755622261683,-409.803287,0.00021095,2]
[380238844,1755622261693,-480.0,0.00021095,2]
[380238845,1755622261702,-409.803287,0.00021095,2]
[380238846,1755622261712,-663.09,0.00021095,2]
[380238847,1755622261724,-409.803287,0.00021095,2]
[380238848,1755622261735,-151.0,0.00021095,2]
[380238849,1755622261744,-519.86,0.00021095,2]
[380238850,1755622261753,-480.0,0.00021095,2]
[380238851,1755622261763,-480.0,0.00021095,2]
[380238852,1755622261772,-705.07,0.00021095,2]
[380238853,1755622261782,-2167.0,0.00021095,2]
[380238854,1755622261791,-480.0,0.00021095,2]
[380238855,1755622261800,-7328.71,0.00021095,2]
[380238856,1755622261809,-538.37,0.00021095,2]
[380238857,1755622261818,-480.0,0.00021095,2]
[380238858,1755622261828,-590.33,0.00021095,2]
[380238859,1755622261837,-151.0,0.00021095,2]
[380238860,1755622261846,-480.0,0.00021095,2]
[380238861,1755622261856,-8087.18579842,0.00021138,2]
[380238862,1755622261866,-277.3,0.00021227,3]
[380238863,1755622261876,-500.0,0.00021308,2]
[380238864,1755622261885,-574.0813827,0.00021308,2]
[380238865,1755622261894,-500.0,0.00021308,2]
[380238866,1755622261904,-500.0,0.00021308,2]
[380238867,1755622261914,-500.0,0.00021308,2]
[380238868,1755622261923,-500.0,0.00021316,2]
[380238869,1755622261933,-500.0,0.00021316,2]
[380238870,1755622261943,-500.0,0.00021316,2]
[380238871,1755622261953,-829.39991493,0.00021339,2]
[380238872,1755622261962,-500.0,0.00021355,2]
[380238873,1755622261975,-500.0,0.00021355,2]
[380238874,1755622261985,-500.0,0.00021355,2]
[380238875,1755622261994,-500.0,0.00021355,2]
[380238876,1755622262003,-500.0,0.00021355,2]